fUST/lending_fUST_20260609
["ID","MTS","AMOUNT","RATE_DAILY","PERIOD"]
[424504747,1780979440000,-595.83272545,0.00016438,2]
[424504749,1780979440000,-500.0,0.00016438,2]
[424504741,1780979440000,-500.0,0.00016438,2]
[424504757,1780979440000,-500.0,0.00016438,2]
[424504755,1780979440000,-500.0,0.00016438,2]
[424504763,1780979440000,-500.0,0.00016438,2]
[424504753,1780979440000,-500.0,0.00016438,2]
[424504751,1780979440000,-500.0,0.00016438,2]
[424504764,1780979440000,-500.0,0.00016438,2]
[424504840,1780979441000,-500.0,0.00016438,2]
[424504848,1780979441000,-500.0,0.00016438,2]
[424504842,1780979441000,-509.77,0.00016438,2]
[424504846,1780979441000,-500.0,0.00016438,2]
[424504841,1780979441000,-612.97,0.00016438,2]
[424504837,1780979441000,-500.0,0.00016438,2]
[424504838,1780979441000,-500.0,0.00016438,2]
[424504839,1780979441000,-500.0,0.00016438,2]
[424504833,1780979441000,-500.73916957,0.00016438,2]
[424504832,1780979441000,-500.0,0.00016438,2]
[424504836,1780979441000,-500.0,0.00016438,2]
[424504845,1780979441000,-500.0,0.00016438,2]
[424504844,1780979441000,-500.0,0.00016438,2]
[424504858,1780979441000,-500.0,0.00016438,2]
[424504843,1780979441000,-500.0,0.00016438,2]
[424504847,1780979441000,-534.45655898,0.00016438,2]
[424504851,1780979441000,-684.65,0.00016438,2]
[424504861,1780979441000,-500.0,0.00016438,2]
[424504862,1780979441000,-500.0,0.00016438,2]
[424504852,1780979441000,-500.0,0.00016438,2]
[424504850,1780979441000,-500.0,0.00016438,2]
[424504854,1780979441000,-500.0,0.00016438,2]
[424504860,1780979441000,-500.0,0.00016438,2]
[424504856,1780979441000,-500.0,0.00016438,2]
[424504855,1780979441000,-500.0,0.00016438,2]
[424504831,1780979441000,-500.2749386,0.00016438,2]
[424504849,1780979441000,-500.0,0.00016438,2]
[424504830,1780979441000,-583.82495888,0.00016438,2]
[424504808,1780979441000,-954.04,0.00016438,2]
[424504828,1780979441000,-501.95977732,0.00016438,2]
[424504803,1780979441000,-500.0,0.00016438,2]
[424504804,1780979441000,-500.0,0.00016438,2]
[424504809,1780979441000,-500.0,0.00016438,2]
[424504807,1780979441000,-500.0,0.00016438,2]
[424504806,1780979441000,-604.74,0.00016438,2]
[424504859,1780979441000,-500.0,0.00016438,2]
[424504805,1780979441000,-500.0,0.00016438,2]
[424504810,1780979441000,-500.0,0.00016438,2]
[424504812,1780979441000,-621.88668787,0.00016438,2]
[424504815,1780979441000,-500.0,0.00016438,2]
[424504816,1780979441000,-500.0,0.00016438,2]
[424504817,1780979441000,-500.0,0.00016438,2]
[424504822,1780979441000,-640.93,0.00016438,2]
[424504813,1780979441000,-500.0,0.00016438,2]
[424504820,1780979441000,-533.18,0.00016438,2]
[424504818,1780979441000,-500.0,0.00016438,2]
[424504814,1780979441000,-577.18021756,0.00016438,2]
[424504811,1780979441000,-500.0,0.00016438,2]
[424504819,1780979441000,-500.0,0.00016438,2]
[424504821,1780979441000,-500.0,0.00016438,2]
[424504824,1780979441000,-500.0,0.00016438,2]
[424504834,1780979441000,-500.0,0.00016438,2]
[424504835,1780979441000,-500.0,0.00016438,2]
[424504823,1780979441000,-500.0,0.00016438,2]
[424504825,1780979441000,-500.0,0.00016438,2]
[424504826,1780979441000,-500.0,0.00016438,2]
[424504827,1780979441000,-675.07,0.00016438,2]
[424504829,1780979441000,-500.0,0.00016438,2]
[424504857,1780979441000,-501.98328365,0.00016438,2]
[424504853,1780979441000,-517.36,0.00016438,2]
[424504869,1780979441000,-500.0,0.00016438,2]
[424504896,1780979441000,-500.0,0.00016438,2]
[424504898,1780979441000,-500.0,0.00016438,2]
[424504894,1780979441000,-500.0,0.00016438,2]
[424504899,1780979441000,-500.0,0.00016438,2]
[424504897,1780979441000,-523.42985403,0.00016438,2]
[424504902,1780979441000,-500.0,0.00016438,2]
[424504903,1780979441000,-2215.745,0.00016561,2]
[424504913,1780979441000,-500.0,0.00016712,2]
[424504904,1780979441000,-3632.0,0.00016561,2]
[424504901,1780979441000,-500.0,0.00016438,2]
[424504912,1780979441000,-500.0,0.00016712,2]
[424504906,1780979441000,-197.579,0.00016561,2]
[424504905,1780979441000,-447.454,0.00016561,2]
[424504910,1780979441000,-500.0,0.00016712,2]
[424504911,1780979441000,-500.0,0.00016712,2]
[424504909,1780979441000,-283.02,0.00016712,2]
[424504908,1780979441000,-1793.101,0.00016712,2]
[424504914,1780979441000,-500.0,0.00016712,2]
[424504917,1780979441000,-173.49613192,0.00016712,2]
[424504919,1780979441000,-500.0,0.00016712,2]
[424504920,1780979441000,-500.0,0.00016712,2]
[424504921,1780979441000,-500.0,0.00016712,2]
[424504916,1780979441000,-521.87023251,0.00016712,2]
[424504918,1780979441000,-584.90597071,0.00016712,2]
[424504922,1780979441000,-280.13223025,0.00016712,2]
[424504915,1780979441000,-500.0,0.00016712,2]
[424504863,1780979441000,-500.0,0.00016438,2]
[424504900,1780979441000,-500.0,0.00016438,2]
[424504895,1780979441000,-553.47,0.00016438,2]
[424504907,1780979441000,-209.5211,0.00016575,2]
[424504889,1780979441000,-500.0,0.00016438,2]
[424504865,1780979441000,-500.0,0.00016438,2]
[424504893,1780979441000,-516.55470611,0.00016438,2]
[424504870,1780979441000,-500.0,0.00016438,2]
[424504867,1780979441000,-500.0,0.00016438,2]
[424504872,1780979441000,-582.83,0.00016438,2]
[424504864,1780979441000,-500.0,0.00016438,2]
[424504868,1780979441000,-410.00225407,0.00016438,2]
[424504874,1780979441000,-500.0,0.00016438,2]
[424504873,1780979441000,-500.0,0.00016438,2]
[424504871,1780979441000,-563.11,0.00016438,2]
[424504879,1780979441000,-500.0,0.00016438,2]
[424504880,1780979441000,-500.0,0.00016438,2]
[424504875,1780979441000,-500.0,0.00016438,2]
[424504877,1780979441000,-500.0,0.00016438,2]
[424504866,1780979441000,-1408.57,0.00016438,2]
[424504890,1780979441000,-500.0,0.00016438,2]
[424504892,1780979441000,-597.47621989,0.00016438,2]
[424504876,1780979441000,-500.0,0.00016438,2]
[424504891,1780979441000,-13457.62,0.00016438,2]
[424504888,1780979441000,-721.65,0.00016438,2]
[424504885,1780979441000,-243.86,0.00016438,2]
[424504884,1780979441000,-521.84,0.00016438,2]
[424504883,1780979441000,-371.46903377,0.00016438,2]
[424504886,1780979441000,-500.0,0.00016438,2]
[424504882,1780979441000,-500.0,0.00016438,2]
[424504878,1780979441000,-212.86007903,0.00016438,2]
[424504881,1780979441000,-500.0,0.00016438,2]
[424504887,1780979441000,-500.0,0.00016438,2]
[424504972,1780979442000,-332.98,0.00016712,2]
[424504964,1780979442000,-500.0,0.00016712,2]
[424504971,1780979442000,-500.0,0.00016712,2]
[424504969,1780979442000,-500.0,0.00016712,2]
[424504967,1780979442000,-500.0,0.00016712,2]
[424504959,1780979442000,-500.0,0.00016712,2]
[424504966,1780979442000,-500.0,0.00016712,2]
[424504961,1780979442000,-364.12,0.00016712,2]
[424504962,1780979442000,-500.0,0.00016712,2]
[424504960,1780979442000,-500.0,0.00016712,2]
[424504958,1780979442000,-500.0,0.00016712,2]
[424504974,1780979442000,-500.0,0.00016712,2]
[424504963,1780979442000,-500.0,0.00016712,2]
[424504977,1780979442000,-396.01631711,0.00016712,2]
[424505002,1780979442000,-454.88,0.00016712,2]
[424504980,1780979442000,-500.0,0.00016712,2]
[424504976,1780979442000,-491.61,0.00016712,2]
[424504983,1780979442000,-500.0,0.00016712,2]
[424504979,1780979442000,-500.0,0.00016712,2]
[424504981,1780979442000,-500.0,0.00016712,2]
[424504982,1780979442000,-194.34,0.00016712,2]
[424504986,1780979442000,-599.32495049,0.00016712,2]
[424504988,1780979442000,-160.43,0.00016712,2]
[424504990,1780979442000,-500.0,0.00016712,2]
[424504993,1780979442000,-954.04,0.00016712,2]
[424504992,1780979442000,-434.89,0.00016712,2]
[424504996,1780979442000,-189.4,0.00016712,2]
[424504957,1780979442000,-500.0,0.00016712,2]
[424504968,1780979442000,-500.0,0.00016712,2]
[424504956,1780979442000,-500.0,0.00016712,2]
[424504927,1780979442000,-242.43,0.00016712,2]
[424504965,1780979442000,-500.0,0.00016712,2]
[424504997,1780979442000,-500.0,0.00016712,2]
[424504923,1780979442000,-221.45,0.00016712,2]
[424504925,1780979442000,-181.07,0.00016712,2]
[424504926,1780979442000,-500.0,0.00016712,2]
[424504924,1780979442000,-500.0,0.00016712,2]
[424504930,1780979442000,-500.0,0.00016712,2]
[424504928,1780979442000,-529.06,0.00016712,2]
[424504931,1780979442000,-501.68151543,0.00016712,2]
[424504937,1780979442000,-500.0,0.00016712,2]
[424504932,1780979442000,-500.0,0.00016712,2]
[424504935,1780979442000,-500.0,0.00016712,2]
[424504934,1780979442000,-219.71255133,0.00016712,2]
[424504936,1780979442000,-511.92444209,0.00016712,2]
[424504933,1780979442000,-500.0,0.00016712,2]
[424504938,1780979442000,-607.2,0.00016712,2]
[424504939,1780979442000,-500.0,0.00016712,2]
[424504940,1780979442000,-261.61,0.00016712,2]
[424504941,1780979442000,-500.0,0.00016712,2]
[424504942,1780979442000,-500.0,0.00016712,2]
[424504943,1780979442000,-1036.15,0.00016712,2]
[424504948,1780979442000,-500.0,0.00016712,2]
[424504944,1780979442000,-500.0,0.00016712,2]
[424504947,1780979442000,-389.53176368,0.00016712,2]
[424504945,1780979442000,-500.0,0.00016712,2]
[424504946,1780979442000,-563.28442379,0.00016712,2]
[424504950,1780979442000,-500.0,0.00016712,2]
[424504951,1780979442000,-500.0,0.00016712,2]
[424504953,1780979442000,-500.0,0.00016712,2]
[424504955,1780979442000,-500.0,0.00016712,2]
[424504954,1780979442000,-500.0,0.00016712,2]
[424504998,1780979442000,-500.0,0.00016712,2]
[424504929,1780979442000,-566.53,0.00016712,2]
[424504999,1780979442000,-640.93,0.00016712,2]
[424505039,1780979442000,-500.0,0.00016712,2]
[424505032,1780979442000,-721.65,0.00016712,2]
[424505034,1780979442000,-500.0,0.00016712,2]
[424505037,1780979442000,-13457.62,0.00016712,2]
[424505040,1780979442000,-512.27,0.00016712,2]
[424505038,1780979442000,-553.47,0.00016712,2]
[424505041,1780979442000,-500.0,0.00016712,2]
[424505047,1780979442000,-500.0,0.00016986,2]
[424505049,1780979442000,-272.21,0.00016986,2]
[424505050,1780979442000,-222.65727649,0.00016986,2]
[424505057,1780979442000,-566.53,0.00016986,2]
[424505056,1780979442000,-529.06,0.00016986,2]
[424505053,1780979442000,-409.67902272,0.00016986,2]
[424505052,1780979442000,-299.05609211,0.00016986,2]
[424505055,1780979442000,-248.52878367,0.00016986,2]
[424505054,1780979442000,-313.65258382,0.00016986,2]
[424505048,1780979442000,-500.0,0.00016986,2]
[424505058,1780979442000,-496.7714178,0.00016986,2]
[424505061,1780979442000,-500.0,0.00016986,2]
[424505060,1780979442000,-500.0,0.00016986,2]
[424505059,1780979442000,-500.0,0.00016986,2]
[424505066,1780979442000,-500.0,0.00016986,2]
[424505062,1780979442000,-500.0,0.00016986,2]
[424505064,1780979442000,-500.0,0.00016986,2]
[424505067,1780979442000,-1036.15,0.00016986,2]
[424505068,1780979442000,-500.0,0.00016986,2]
[424505063,1780979442000,-607.2,0.00016986,2]
[424505065,1780979442000,-296.91,0.00016986,2]
[424504994,1780979442000,-398.07,0.00016712,2]
[424505035,1780979442000,-500.0,0.00016712,2]
[424505046,1780979442000,-500.0,0.00016986,2]
[424505051,1780979442000,-500.0,0.00016986,2]
[424505042,1780979442000,-500.0,0.00016712,2]
[424505045,1780979442000,-500.0,0.00016986,2]
[424504995,1780979442000,-500.0,0.00016712,2]
[424505001,1780979442000,-500.0,0.00016712,2]
[424505000,1780979442000,-675.07,0.00016712,2]
[424505003,1780979442000,-500.0,0.00016712,2]
[424505004,1780979442000,-500.0,0.00016712,2]
[424505006,1780979442000,-509.77,0.00016712,2]
[424505007,1780979442000,-684.65,0.00016712,2]
[424505008,1780979442000,-517.36,0.00016712,2]
[424505011,1780979442000,-500.0,0.00016712,2]
[424505010,1780979442000,-199.34,0.00016712,2]
[424505009,1780979442000,-500.0,0.00016712,2]
[424505012,1780979442000,-500.0,0.00016712,2]
[424505013,1780979442000,-500.0,0.00016712,2]
[424505005,1780979442000,-612.97,0.00016712,2]
[424505016,1780979442000,-212.97,0.00016712,2]
[424505043,1780979442000,-186.21756912,0.0001696,2]
[424505014,1780979442000,-500.0,0.00016712,2]
[424505044,1780979442000,-689.2922,0.00016986,2]
[424505030,1780979442000,-500.0,0.00016712,2]
[424505028,1780979442000,-521.84,0.00016712,2]
[424505025,1780979442000,-500.0,0.00016712,2]
[424505015,1780979442000,-500.0,0.00016712,2]
[424505026,1780979442000,-500.0,0.00016712,2]
[424505021,1780979442000,-500.0,0.00016712,2]
[424505019,1780979442000,-582.83,0.00016712,2]
[424505023,1780979442000,-500.0,0.00016712,2]
[424505020,1780979442000,-500.0,0.00016712,2]
[424505017,1780979442000,-1408.57,0.00016712,2]
[424505018,1780979442000,-563.11,0.00016712,2]
[424505094,1780979443000,-500.0,0.00016986,2]
[424505093,1780979443000,-500.0,0.00016986,2]
[424505091,1780979443000,-500.0,0.00016986,2]
[424505095,1780979443000,-500.0,0.00016986,2]
[424505096,1780979443000,-954.04,0.00016986,2]
[424505089,1780979443000,-500.0,0.00016986,2]
[424505100,1780979443000,-640.93,0.00016986,2]
[424505097,1780979443000,-489.33,0.00016986,2]
[424505113,1780979443000,-500.0,0.00016986,2]
[424505098,1780979443000,-500.0,0.00016986,2]
[424505110,1780979443000,-397.15,0.00016986,2]
[424505111,1780979443000,-500.0,0.00016986,2]
[424505112,1780979443000,-500.0,0.00016986,2]
[424505101,1780979443000,-675.07,0.00016986,2]
[424505092,1780979443000,-500.0,0.00016986,2]
[424505109,1780979443000,-500.0,0.00016986,2]
[424505099,1780979443000,-500.0,0.00016986,2]
[424505090,1780979443000,-500.0,0.00016986,2]
[424505072,1780979443000,-500.0,0.00016986,2]
[424505080,1780979443000,-500.0,0.00016986,2]
[424505106,1780979443000,-509.77,0.00016986,2]
[424505071,1780979443000,-500.0,0.00016986,2]
[424505074,1780979443000,-500.0,0.00016986,2]
[424505070,1780979443000,-500.0,0.00016986,2]
[424505073,1780979443000,-500.0,0.00016986,2]
[424505075,1780979443000,-500.0,0.00016986,2]
[424505085,1780979443000,-500.0,0.00016986,2]
[424505084,1780979443000,-500.0,0.00016986,2]
[424505086,1780979443000,-500.0,0.00016986,2]
[424505076,1780979443000,-500.0,0.00016986,2]
[424505087,1780979443000,-500.0,0.00016986,2]
[424505083,1780979443000,-500.0,0.00016986,2]
[424505082,1780979443000,-500.0,0.00016986,2]
[424505081,1780979443000,-500.0,0.00016986,2]
[424505078,1780979443000,-500.0,0.00016986,2]
[424505077,1780979443000,-500.0,0.00016986,2]
[424505079,1780979443000,-500.0,0.00016986,2]
[424505088,1780979443000,-500.0,0.00016986,2]
[424505103,1780979443000,-192.20675291,0.00016986,2]
[424505069,1780979443000,-500.0,0.00016986,2]
[424505107,1780979443000,-684.65,0.00016986,2]
[424505138,1780979443000,-500.0,0.0001726,2]
[424505132,1780979443000,-500.0,0.00016986,2]
[424505133,1780979443000,-184.16,0.0001716,2]
[424505135,1780979443000,-457.2882,0.00017198,2]
[424505136,1780979443000,-500.0,0.0001726,2]
[424505137,1780979443000,-500.0,0.0001726,2]
[424505134,1780979443000,-152.44915389,0.00017181,2]
[424505139,1780979443000,-234.63682254,0.0001726,2]
[424505142,1780979443000,-566.53,0.0001726,2]
[424505141,1780979443000,-529.06,0.0001726,2]
[424505140,1780979443000,-500.0,0.0001726,2]
[424505145,1780979443000,-608.06,0.0001726,2]
[424505146,1780979443000,-649.04,0.0001726,2]
[424505144,1780979443000,-500.0,0.0001726,2]
[424505148,1780979443000,-483.37982963,0.0001726,2]
[424505143,1780979443000,-500.0,0.0001726,2]
[424505147,1780979443000,-607.2,0.0001726,2]
[424505130,1780979443000,-500.0,0.00016986,2]
[424505131,1780979443000,-500.0,0.00016986,2]
[424505108,1780979443000,-517.36,0.00016986,2]
[424505129,1780979443000,-553.47,0.00016986,2]
[424505128,1780979443000,-13457.62,0.00016986,2]
[424505102,1780979443000,-500.0,0.00016986,2]
[424505105,1780979443000,-612.97,0.00016986,2]
[424505104,1780979443000,-500.0,0.00016986,2]
[424505116,1780979443000,-563.11,0.00016986,2]
[424505118,1780979443000,-500.0,0.00016986,2]
[424505114,1780979443000,-474.88307045,0.00016986,2]
[424505117,1780979443000,-582.83,0.00016986,2]
[424505120,1780979443000,-500.0,0.00016986,2]
[424505115,1780979443000,-1408.57,0.00016986,2]
[424505121,1780979443000,-500.0,0.00016986,2]
[424505122,1780979443000,-500.0,0.00016986,2]
[424505123,1780979443000,-521.84,0.00016986,2]
[424505119,1780979443000,-500.0,0.00016986,2]
[424505125,1780979443000,-721.65,0.00016986,2]
[424505126,1780979443000,-540.3,0.00016986,2]
[424505127,1780979443000,-500.0,0.00016986,2]
[424505124,1780979443000,-500.0,0.00016986,2]
[424505150,1780979444000,-118.73371744,0.0001726,2]
[424505149,1780979444000,-1.10406263,0.0001726,2]
[424505151,1780979444000,-391.38865529,0.0001726,2]
[424505155,1780979444000,-479.49714679,0.0001726,2]
[424505153,1780979444000,-268.78998773,0.0001726,2]
[424505152,1780979444000,-108.61134471,0.0001726,2]
[424505154,1780979444000,-767.36001227,0.0001726,2]
[424505174,1780979446000,-5.98661341,0.0001726,2]
[424505173,1780979446000,-494.01338659,0.0001726,2]
[424505172,1780979446000,-500.0,0.0001726,2]
[424505171,1780979446000,-500.0,0.0001726,2]
[424505175,1780979446000,-500.0,0.0001726,2]
[424505168,1780979446000,-500.0,0.0001726,2]
[424505169,1780979446000,-337.68441553,0.0001726,2]
[424505170,1780979446000,-162.31558447,0.0001726,2]
[424505176,1780979446000,-500.0,0.0001726,2]
[424505167,1780979446000,-500.0,0.0001726,2]
[424505163,1780979446000,-500.0,0.0001726,2]
[424505161,1780979446000,-600.0,0.00017045,2]
[424505164,1780979446000,-542.49944399,0.0001726,2]
[424505162,1780979446000,-20.50285321,0.0001726,2]
[424505165,1780979446000,-500.0,0.0001726,2]
[424505166,1780979446000,-500.0,0.0001726,2]
[424505177,1780979446000,-500.0,0.0001726,2]
[424505190,1780979446000,-500.0,0.0001726,2]
[424505179,1780979446000,-500.0,0.0001726,2]
[424505193,1780979446000,-500.0,0.0001726,2]
[424505195,1780979446000,-390.2619684,0.0001726,2]
[424505194,1780979446000,-640.93,0.0001726,2]
[424505191,1780979446000,-954.04,0.0001726,2]
[424505182,1780979446000,-500.0,0.0001726,2]
[424505187,1780979446000,-500.0,0.0001726,2]
[424505186,1780979446000,-500.0,0.0001726,2]
[424505192,1780979446000,-500.0,0.0001726,2]
[424505189,1780979446000,-454.4,0.0001726,2]
[424505188,1780979446000,-500.0,0.0001726,2]
[424505184,1780979446000,-500.0,0.0001726,2]
[424505181,1780979446000,-500.0,0.0001726,2]
[424505183,1780979446000,-500.0,0.0001726,2]
[424505178,1780979446000,-496.44455029,0.0001726,2]
[424505180,1780979446000,-500.0,0.0001726,2]
[424505185,1780979446000,-500.0,0.0001726,2]
[424505199,1780979473000,151.0,8e-05,2]
[424505198,1780979473000,-500.0,9.998e-05,2]
[424505200,1780979489000,-647.63459112,9.998e-05,2]
[424505204,1780980552000,-320.81182996,9.406e-05,2]
[424505233,1780980631000,-4297.84941981,9.219e-05,2]
[424505235,1780980631000,-500.0,9.5e-05,2]
[424505234,1780980631000,-5000.0,9.312e-05,2]
[424505236,1780980631000,-500.0,9.5e-05,2]
[424505238,1780980631000,-500.0,9.5e-05,2]
[424505237,1780980631000,-235.49000959,9.5e-05,2]
[424505261,1780980632000,-300.0,0.00010401,2]
[424505254,1780980632000,-300.0,0.00010401,2]
[424505256,1780980632000,-300.0,0.00010401,2]
[424505257,1780980632000,-300.0,0.00010401,2]
[424505248,1780980632000,-194.99982334,9.898e-05,7]
[424505252,1780980632000,-194.99982334,0.00010393,7]
[424505250,1780980632000,-194.99982334,0.00010096,7]
[424505245,1780980632000,-500.0,9.5e-05,2]
[424505255,1780980632000,-300.0,0.00010401,2]
[424505244,1780980632000,-500.0,9.5e-05,2]
[424505242,1780980632000,-500.0,9.5e-05,2]
[424505241,1780980632000,-234.69303587,9.5e-05,2]
[424505240,1780980632000,-500.0,9.5e-05,2]
[424505243,1780980632000,-500.0,9.5e-05,2]
[424505239,1780980632000,-500.0,9.5e-05,2]
[424505247,1780980632000,-158.99497871,9.898e-05,7]
[424505258,1780980632000,-300.0,0.00010401,2]
[424505246,1780980632000,-1176.385527,9.5e-05,2]
[424505259,1780980632000,-300.0,0.00010401,2]
[424505277,1780980632000,-862.80918566,0.00012232,2]
[424505260,1780980632000,-300.0,0.00010401,2]
[424505273,1780980632000,-1860.95813255,0.00012132,2]
[424505274,1780980632000,-500.0,0.00012231,2]
[424505276,1780980632000,-1298.05158927,0.00012232,2]
[424505275,1780980632000,-164.15543101,0.00012231,2]
[424505272,1780980632000,-2101.30192286,0.00012132,2]
[424505270,1780980632000,-194.99982336,0.00011086,7]
[424505271,1780980632000,-152.0,0.00012028,7]
[424505269,1780980632000,-194.99982334,0.0001069,7]
[424505267,1780980632000,-300.0,0.00010401,2]
[424505268,1780980632000,-300.0,0.00010401,2]
[424505266,1780980632000,-300.0,0.00010401,2]
[424505264,1780980632000,-300.0,0.00010401,2]
[424505265,1780980632000,-300.0,0.00010401,2]
[424505262,1780980632000,-300.0,0.00010401,2]
[424505263,1780980632000,-300.0,0.00010401,2]
[424505385,1780980640000,-500.0,0.00016438,2]
[424505380,1780980640000,-500.0,0.00016438,2]
[424505378,1780980640000,-500.0,0.00016438,2]
[424505372,1780980640000,-1000.0,0.00016438,2]
[424505374,1780980640000,-231.01565609,0.00016438,2]
[424505368,1780980640000,-500.0,0.00016438,2]
[424505382,1780980640000,-500.0,0.00016438,2]
[424505387,1780980640000,-500.0,0.00016438,2]
[424505376,1780980640000,-500.0,0.00016438,2]
[424505391,1780980640000,-301.68870498,0.00016438,2]
[424505403,1780980640000,-500.0,0.00016438,2]
[424505389,1780980640000,-500.0,0.00016438,2]
[424505393,1780980640000,-580.17,0.00016438,2]
[424505395,1780980640000,-500.0,0.00016438,2]
[424505401,1780980640000,-500.0,0.00016438,2]
[424505397,1780980640000,-500.0,0.00016438,2]
[424505399,1780980640000,-500.0,0.00016438,2]
[424505407,1780980640000,-500.0,0.00016438,2]
[424505405,1780980640000,-500.0,0.00016438,2]
[424505409,1780980640000,-500.0,0.00016438,2]
[424505367,1780980640000,-500.0,0.00016438,2]
[424505384,1780980640000,-500.0,0.00016438,2]
[424505365,1780980640000,-500.0,0.00016438,2]
[424505319,1780980640000,-500.0,0.000104,2]
[424505361,1780980640000,-500.0,0.00016438,2]
[424505315,1780980640000,-401.3443122,0.000104,2]
[424505329,1780980640000,-500.0,0.000104,2]
[424505333,1780980640000,-500.0,0.000104,2]
[424505331,1780980640000,-500.0,0.000104,2]
[424505411,1780980640000,-500.0,0.00016438,2]
[424505323,1780980640000,-500.0,0.000104,2]
[424505327,1780980640000,-500.0,0.000104,2]
[424505325,1780980640000,-500.0,0.000104,2]
[424505321,1780980640000,-500.0,0.000104,2]
[424505337,1780980640000,-500.0,0.000104,2]
[424505363,1780980640000,-500.0,0.00016438,2]
[424505339,1780980640000,-500.0,0.000104,2]
[424505341,1780980640000,-2186.93663907,0.00012232,2]
[424505343,1780980640000,-536.89854397,0.00012505,2]
[424505344,1780980640000,-3962.26005537,0.00014021,2]
[424505352,1780980640000,-600.0,0.00015568,2]
[424505348,1780980640000,-334.41725118,0.00014503,2]
[424505350,1780980640000,-173.13221952,0.00015019,2]
[424505346,1780980640000,-185.9733351,0.00014503,2]
[424505355,1780980640000,-3962.26005537,0.00015911,2]
[424505357,1780980640000,-245.565,0.0001607,2]
[424505359,1780980640000,-191.54,0.00016338,2]
[424505335,1780980640000,-500.0,0.000104,2]
[424505415,1780980640000,-500.0,0.00016438,2]
[424505317,1780980640000,-500.0,0.000104,2]
[424505417,1780980640000,-393.5717548,0.00016438,2]
[424505469,1780980640000,-243.69698611,0.00016438,2]
[424505471,1780980640000,-500.0,0.00016438,2]
[424505486,1780980640000,-500.0,0.00016438,2]
[424505484,1780980640000,-500.0,0.00016438,2]
[424505480,1780980640000,-500.0,0.00016438,2]
[424505482,1780980640000,-500.0,0.00016438,2]
[424505473,1780980640000,-500.0,0.00016438,2]
[424505475,1780980640000,-500.0,0.00016438,2]
[424505478,1780980640000,-500.0,0.00016438,2]
[424505476,1780980640000,-500.0,0.00016438,2]
[424505463,1780980640000,-500.0,0.00016438,2]
[424505490,1780980640000,-500.0,0.00016438,2]
[424505494,1780980640000,-500.0,0.00016438,2]
[424505496,1780980640000,-500.0,0.00016438,2]
[424505502,1780980640000,-500.0,0.00016438,2]
[424505498,1780980640000,-243.20928261,0.00016438,2]
[424505500,1780980640000,-500.0,0.00016438,2]
[424505504,1780980640000,-500.0,0.00016438,2]
[424505506,1780980640000,-500.0,0.00016438,2]
[424505508,1780980640000,-500.0,0.00016438,2]
[424505510,1780980640000,-500.0,0.00016438,2]
[424505413,1780980640000,-500.0,0.00016438,2]
[424505492,1780980640000,-500.0,0.00016438,2]
[424505467,1780980640000,-500.0,0.00016438,2]